Cogmind - Beta 17 @@@ ROGUE MODE // 2026.08.10 @ 21:18:35 Player: Vectis Result: Destroyed by Q1-7UW(R) with Subdweller Beam Cannon Performance ------------- Evolutions (0) 0 Regions Visited (2) 400 Robots Destroyed (40) 200 Value Destroyed (836) 836 Prototype IDs (15) 300 Alien Tech Used (0) 0 Bonus (0) 0 TOTAL SCORE: 1736 Bonus ------- None Cogmind --------- Core Integrity 0/250 Matter 125/300 Energy 125/125 System Corruption 0% Temperature Cool (9) Movement Treading (250) Ox1 Location -10/Subcaves Parts ------- > --- POWER (1) -------- Light Ion Engine (fused) > --- PROPULSION (2) --- Armored Treads (fused) > --- UTILITY (2) ------ Large Storage Unit Self-contained Transmogrifier > --- WEAPON (2) ------- Assault Rifle Subdweller Machine Gun > --- INVENTORY (15) --- Light Ion Engine Light Ion Engine Light Treads Heat Sink Huge Storage Unit High-capacity Matter Pod (200) Signal Interpreter Seismic Detector Propulsion Shielding Subdweller Beam Cannon Grenade Launcher Plasma Cutter Heavy Hammer Peak State ------------ > --- POWER ------------ Ion Engine > --- PROPULSION ------- Light Treads Armored Treads > --- UTILITY ---------- Large Storage Unit Self-contained Transmogrifier > --- WEAPON ----------- Subdweller Machine Gun Heavy Hammer > --- INVENTORY -------- Light Ion Engine Light Ion Engine Light Treads Heat Sink Huge Storage Unit High-capacity Matter Pod Signal Interpreter Seismic Detector Propulsion Shielding Subdweller Beam Cannon Assault Rifle Grenade Launcher Plasma Cutter [Rating: 20] Favorites ----------- Power Light Ion Engine Engine Light Ion Engine Propulsion Light Treads Treads Light Treads Leg Aluminum Leg Wheel Wheel Utility Large Storage Unit Device Seismic Detector Storage Large Storage Unit Protection Propulsion Shielding Weapon Beam Cannon Energy Gun Spread Laser Energy Cannon Beam Cannon Ballistic Gun Assault Rifle Ballistic Cannon Light Cannon Launcher Grenade Launcher Impact Weapon Heavy Hammer Build | -11 -10 -10 ------- Run | Yrd Mat Sub Slots Evolved . | . . . Power . | . . . Propulsion . | . . . Utility . | . . . Weapon . | . . . Parts Attached 15 | 1 11 3 Power . | . . . Engine . | . . . Core . | . . . Reactor . | . . . Propulsion 4 | . 3 1 Treads 3 | . 3 . Leg . | . . . Wheel 1 | . . 1 Hover . | . . . Flight . | . . . Utility 5 | 1 3 1 Device 3 | 1 1 1 Storage 1 | . 1 . Processor . | . . . Hackware . | . . . Protection 1 | . 1 . Artifact . | . . . Weapon 6 | . 5 1 Energy Gun . | . . . Energy Cannon 1 | . 1 . Ballistic Gun 2 | . 1 1 Ballistic Cannon 1 | . 1 . Launcher 1 | . 1 . Special Weapon . | . . . Impact Weapon 1 | . 1 . Slashing Weapon . | . . . Piercing Weapon . | . . . Special Melee Weapon . | . . . Unidentified Prototypes 1 | . . 1 Parts Lost 3 | . . 3 Power . | . . . Propulsion 2 | . . 2 Utility . | . . . Weapon 1 | . . 1 Highest Loss Streak 1 | . . 1 To Critical Strikes . | . . . Average Backups 13 | 6 13 14 Power 1 | 1 1 2 Propulsion 2 | 4 2 1 Utility 5 | . 5 6 Weapon 3 | 1 3 3 Tool/Special . | . . . Unused Backups 30 | 7 12 11 Power 4 | 1 . 3 Propulsion 8 | 3 5 . Utility 11 | 1 4 6 Weapon 6 | 2 3 1 Tool/Special 1 | . . 1 Average Slot Usage (%) 99 | . 99 99 Engine 14 | . 14 14 Treads 23 | . 26 19 Leg 1 | . 1 . Wheel 3 | . . 8 Device 13 | . 12 13 Storage 14 | . 14 14 Energy Gun 3 | . 1 6 Energy Cannon 10 | . 13 5 Ballistic Gun 2 | . 1 5 Ballistic Cannon 10 | . 11 7 Peak Build Rating 20 | 7 9 20 Average Rating 10 | 6 7 14 On Entrance 7 | 6 7 8 Avg Prop Armor Cover (%) . | . . . Naked Turns . | . . . Heaviest Build 32 | 13 30 32 Greatest Support 40 | 20 40 40 Greatest Overweight (x) 1 | . . 1 Average Overweight (x) . | . . . Largest Inventory Capacity 15 | 8 15 15 Average Capacity 13 | 8 13 15 Most Carried 15 | 7 15 15 Average Carried 13 | 6 13 14 Final Capacity 15 | 8 15 15 Final Carried 15 | 6 15 13 Transmogrified Parts 10 | . . 10 Integrity Recovered 108 | . . 108 Class Distribution -------------------- 100% | Mutant Dominant Class ---------------- Mutant | -10/Materials Mutant | -10/Subcaves Resources | -11 -10 -10 ----------- Run | Yrd Mat Sub Matter Collected 1103 | 210 600 293 Remotely . | . . . Salvage Created 1219 | 117 778 324 Parts 77 | 11 46 20 Haulers Intercepted 2 | . 2 . Recyclers Shooed 5 | 1 4 . Parts Field Recycled . | . . . Retrieved Matter . | . . . Parts Self-Destructed 3 | . . 3 Prevented . | . . . Parts Restored . | . . . Kills | -11 -10 -10 ------- Run | Yrd Mat Sub Combat Hostiles Destroyed 22 | . 14 8 Melee 1 | . . 1 Guns 5 | . . 5 Cannons 9 | . 7 2 AOE 6 | . 6 . Classes Destroyed 11 | 3 7 1 Worker 4 | 2 2 . Builder 1 | . 1 . Tunneler 2 | 1 1 . Hauler 2 | . 2 . Recycler 4 | 1 3 . Mechanic 1 | . 1 . Operator 1 | . 1 . Watcher 3 | . 3 . Swarmer 6 | . 6 . Grunt 8 | . 8 . Subdweller 8 | . . 8 Best Kill Streak 4 | 2 4 2 Combat Bots Only 4 | . 4 2 Max Kills in Single Turn 2 | 1 2 1 Gunslinging . | . . . Exploded 2 | . 2 . Melee 1 | . . 1 Uniques/NPCs Destroyed . | . . . Combat | -11 -10 -10 -------- Run | Yrd Mat Sub Hostile Shots Fired 91 | . 44 47 Missed 28 | . 16 12 Hits 63 | . 28 35 Projectile 63 | . 28 35 Damage Taken 1082 | . 293 789 Core 252 | . 55 197 Absorbed by Shields . | . . . Redirected to Shielding 14 | . 14 . Regen/Repaired (Parts) 92 | . 92 . Core Remaining (%) 100 | 100 . . Volleys Fired 167 | 20 83 64 Largest 2 | 2 2 2 Hottest 121 | 90 90 121 Shots Fired 251 | 25 133 93 Gun 80 | 25 9 46 Cannon 163 | . 120 43 Launcher 8 | . 4 4 Special . | . . . Kinetic 118 | . 53 65 Thermal 120 | 20 76 24 Explosive 8 | . 4 4 Electromagnetic 5 | 5 . . Robot Hit Streak 18 | 3 9 18 Robot Miss Streak 5 | 5 5 3 Penetration Max . | . . . Secondary Targets 2 | . . 2 Max Gunslinging Chain 1 | . . 1 Shots Hit Robots 131 | 13 72 46 Core Hits 59 | 5 32 22 Critical Kills 1 | . 1 . Critical Parts Destroyed 1 | . 1 . Critical Strikes 5 | . 3 2 Burn 2 | . . 2 Meltdown 1 | . 1 . Blast 1 | . 1 . Smash 1 | . 1 . Melee Attacks 40 | . 6 34 Impact 40 | . 6 34 Slashing . | . . . Piercing . | . . . Sneak Attacks 2 | . 2 . Combat Hostiles . | . . . Follow-up Attacks . | . . . Damage Inflicted 2601 | 163 1749 689 Guns 735 | 163 81 491 Cannons 1358 | . 1216 142 Explosions 290 | . 290 . Melee 210 | . 154 56 Ramming 8 | . 8 . Kinetic 873 | . 553 320 Thermal 1205 | 148 744 313 Explosive 290 | . 290 . Electromagnetic 15 | 15 . . Impact 210 | . 154 56 Slashing . | . . . Piercing . | . . . Highest Corruption . | . . . Average Corruption . | . . . Corruption Purged . | . . . Corruption Blocked . | . . . Overload Shots . | . . . Overflow Damage 182 | . 182 . Projectiles 41 | . 41 . Explosions 7 | . 7 . Melee 134 | . 134 . Knockbacks 4 | . 3 1 Impact . | . . . Kinetic 4 | . 3 1 Secondary . | . . . Self-Inflicted Damage 35 | . 35 . Shots 1 | . 1 . Rammed 2 | . 2 . Targets Rammed 2 | . 2 . Kicked . | . . . Crushed . | . . . Highest Temperature 222 | 132 222 . Average Temperature 45 | 53 44 . Received Heat Transfer 156 | . 57 99 Siege Activations . | . . . Martial Activations . | . . . Shielding Activations . | . . . Robots Disrupted . | . . . Combat Hostiles . | . . . Robots Corrupted 1 | . 1 . Combat Hostiles . | . . . Parts Fried 2 | . 2 . Impact Corruptions 5 | . 5 . Robots Melted 1 | . 1 . Combat Hostiles 1 | . 1 . Parts Melted 4 | . 3 1 Heat Transferred 2677 | 444 1554 679 Parts Sabotaged . | . . . Parts Stolen . | . . . Parts Stripped . | . . . Power Chain Reactions . | . . . Alert | -11 -10 -10 ------- Run | Yrd Mat Sub Maximum Alert Level . | . . . Low Security (%) 100 | 100 100 . Level 1 . | . . . Level 2 . | . . . Level 3 . | . . . Level 4 . | . . . Level 5 . | . . . High Security . | . . . Max Security . | . . . Peak Influence 186 | 10 186 . Initial 6 | . 6 . Average 88 | . 92 . Influence Increases 556 | 20 536 . Destroy 0b10 Robot/C 280 | . 280 . Destroy 0b10 Robot/NC 90 | 20 70 . Destroy Leader 60 | . 60 . Successful Hack 26 | . 26 . Disable Machine 45 | . 45 . Destroy Structure 25 | . 25 . Lose Combat Pursuer 30 | . 30 . Influence Decreases 556 | 10 464 82 Entered New Map 44 | . 4 40 Time Decay 512 | 10 460 42 Squads Dispatched 1 | . 1 . Investigation . | . . . Extermination . | . . . Reinforcement 1 | . 1 . Assault . | . . . Garrison . | . . . Intercept . | . . . Searches Triggered . | . . . Construction Impeded . | . . . Haulers Reinforced . | . . . Active Scanning Responses . | . . . Cargo Convoy Interrupts . | . . . Stealth | -11 -10 -10 --------- Run | Yrd Mat Sub Distress Signals 1 | . 1 . Communications Jammed . | . . . Distress Signals . | . . . Times Spotted 37 | . 28 9 Peak Tracking Total 5 | . 5 2 Tactical Retreats 2 | . 2 . Traps | -11 -10 -10 ------- Run | Yrd Mat Sub Traps Triggered . | . . . Indirectly . | . . . Trap Hack Attempts . | . . . Triggered . | . . . Disarmed . | . . . Reprogrammed . | . . . Reused . | . . . Traps Extracted . | . . . Installed . | . . . Triggered . | . . . Machines | -11 -10 -10 ---------- Run | Yrd Mat Sub Machines Disabled 3 | . 3 . Max in Single Turn 1 | . 1 . Machines Repaired . | . . . Machines Dismantled . | . . . Machines Sabotaged . | . . . Overloaded Fab Kills . | . . . Hacking | -11 -10 -10 --------- Run | Yrd Mat Sub Machines Accessed 10 | . 9 1 Terminals 6 | . 6 . Fabricators . | . . . Repair Stations 1 | . 1 . Recycling Units 2 | . 2 . Scanalyzers . | . . . Garrison Access . | . . . Total Hacks 42 | . 33 9 Successful 30 | . 21 9 Failed 11 | . 11 . Catastrophic 3 | . 3 . Database Lockouts 1 | . 1 . Manual 25 | . 25 . Terminals 22 | . 22 . Fabricators . | . . . Repair Stations 4 | . 4 . Recycling Units 7 | . 7 . Scanalyzers . | . . . Garrison Access . | . . . Terminal Hacks 13 | . 4 9 Record 8 | . . 8 Robot Analysis 3 | . 3 . Branch Access Points 1 | . 1 . Proto ID Catalog 1 | . . 1 Fabricator Hacks . | . . . Repair Station Hacks 4 | . 4 . Scan Component 2 | . 2 . Repair 2 | . 2 . Recycling Unit Hacks 2 | . 2 . Retrieve Matter 1 | . 1 . Retrieve Components 1 | . 1 . Scanalyzer . | . . . Garrison Access Hacks . | . . . Unauthorized Hacks 11 | . 11 . Terminals 6 | . 6 . Botnet 5 | . 5 . Operators 1 | . 1 . Fabricators . | . . . Repair Stations . | . . . Recycling Units 5 | . 5 . Monitor 1 | . 1 . Reject 2 | . 2 . Recyclers 1 | . 1 . Mask 1 | . 1 . Scanalyzers . | . . . Garrison Access . | . . . Data Cores Recovered . | . . . Used . | . . . Hacking Detections 8 | . 8 . Full Trace Events 1 | . 1 . Feedback Events . | . . . Feedback Blocked . | . . . Robot Schematics Acquired . | . . . Robots Built . | . . . Authchips . | . . . Time . | . . . Total Robot Build Rating . | . . . Part Schematics Acquired . | . . . Parts Built . | . . . Authchips . | . . . Time . | . . . Total Part Build Rating . | . . . Part Studies Acquired . | . . . Parts Repaired 2 | . 2 . Time 52 | . 52 . Parts Recycled . | . . . Recycled Matter . | . . . Retrieved Matter 32 | . 32 . Retrieved Components 10 | . 10 . Parts Scanalyzed . | . . . Part Schematics Acquired . | . . . Parts Damaged . | . . . Bothacking | -11 -10 -10 ------------ Run | Yrd Mat Sub Used RIF Installer . | . . . Robots Hacked . | . . . Non-combat . | . . . Combat . | . . . Robot Hacks Applied . | . . . Relay Couplers Released . | . . . Fabnet Peak Effective % . | . . . Robots Rewired . | . . . Allies Hacked . | . . . Hacks Repelled . | . . . Allies | -11 -10 -10 -------- Run | Yrd Mat Sub Total Allies . | . . . Largest Group . | . . . Highest-Rated Group . | . . . Highest-Rated Ally . | . . . Total Orders . | . . . Ally Attacks . | . . . Total Damage . | . . . Kills . | . . . Allies Corrupted . | . . . Allies Melted . | . . . Intel | -11 -10 -10 ------- Run | Yrd Mat Sub Active Infowar (turns) 2403 | 45 1973 385 Seismic 2403 | 45 1973 385 Robot Analysis Total 3 | . 3 . Derelict Logs Recovered 1 | . . 1 Drone Launches . | . . . Drone Recoveries . | . . . Exploration | -11 -10 -10 ------------- Run | Yrd Mat Sub Turns Passed 3502 | 108 2192 1202 Spaces Moved 1826 | 51 1112 663 Core . | . . . Treads 1391 | . 1017 374 Legs 146 | 51 95 . Wheels 289 | . . 289 Hover . | . . . Flight . | . . . Fastest Speed 100 | 120 120 100 Average Speed 147 | 120 156 135 Slowest Speed 165 | 120 160 165 Overloaded Moves . | . . . Propulsion Burnouts . | . . . Robots Hopped . | . . . Potential Cave-ins 2 | . . 2 Cave-ins Triggered . | . . . Exploration Rate (%) 44 | 4 99 30 Regions Visited 2 Branch Regions 1 Pre-discovered Areas . | . . . Known Exits Taken . | . . . Unknown Exits Taken 2 | 1 1 . Scrap Searched . | . . . Spaces Dug 27 | . 3 24 Terrain Destroyed 82 | . 21 61 Melee 24 | . 3 21 Projectile 4 | . . 4 AOE 54 | . 18 36 Terrain Rammed . | . . . Walls Destroyed . | . . . Machines Disabled . | . . . Actions | -11 -10 -10 --------- Run | Yrd Mat Sub Total 2300 | 73 1420 807 Wait 182 | . 163 19 Move 1824 | 50 1111 663 Hop . | . . . Pick Up 27 | 1 24 2 Fast Attach 3 | 1 . 2 Attach 3 | . 1 2 Detach . | . . . Swap 33 | . 16 17 Drop 19 | 1 14 4 Fire 167 | 20 83 64 Melee 40 | . 6 34 Ram . | . . . Kick . | . . . Crush 2 | . 2 . Escape Stasis . | . . . Rewire . | . . . Trap . | . . . Miscellaneous . | . . . Route ------- -11/Scrapyard -10/Materials (discovered 6 exits: [*Mat x3] / *Min x2 / *Sub) -10/Subcaves (discovered 1 exit: [*Mat]) History --------- Turn | Location | Event 1 | -11/Scrapyard | Discovered new exit (range 3) 109 | -11/Scrapyard | Entered Materials 258 | -10/Materials | Discovered new exit (range 14) 309 | -10/Materials | Build established: Mutant 430 | -10/Materials | Identified exit to Mines 466 | -10/Materials | Discovered new exit (range 4) 976 | -10/Materials | Discovered new exit (range 15) 1296 | -10/Materials | Discovered new exit (range 4) 1347 | -10/Materials | Central database locked down 2040 | -10/Materials | Repaired Grenade Launcher 2067 | -10/Materials | Repaired Lgt. Treads 2285 | -10/Materials | Discovered new exit (range 9) 2301 | -10/Materials | Entered Subcaves 2302 | -10/Subcaves | Approached by a straggling Scientist 2577 | -10/Subcaves | Ambushed by Subdweller buried in earth 2681 | -10/Subcaves | Visited 4L-MR0's lab 2690 | -10/Subcaves | Found Prototype Device 2690 | -10/Subcaves | Identified Sfc. Transmogrifier 2805 | -10/Subcaves | Ambushed by Subdweller buried in earth 3250 | -10/Subcaves | Core integrity fell below 50% 3356 | -10/Subcaves | Discovered new exit (range 7) 3498 | -10/Subcaves | Core integrity fell below 20% 3503 | -10/Subcaves | Destroyed by Q1-7UW(R) with Subdweller Beam Cannon Last Messages --------------- into Arm. Treads. 03346_ Acquired 48 matter. 03351_ DK-RR7(u) deconstructs Twisted Machinery. 03356_ EXIT=FOUND 03361_ Acquired derelict log, extracted data. Data stored: Storage entrances (x1). 03361_ DK-RR7(u) deconstructs Twisted Machinery. DA-I9C(c): "I think it's somewhere west of here" 03377_ DK-RR7(u) deconstructs Twisted Machinery. 03399_ Sfc. Transmogrifier converts Lgt. Ion Engine into Ion Engine. DA-I9C(c): "I think it's somewhere west of here" 03455_ Sfc. Transmogrifier converts Ion Engine into Lgt. Ion Engine. DA-I9C(c): "I think it's somewhere west of here" 03494_ XV-EVM(R) destroyed. 03503_ Lgt. Treads destroyed. Map ----- +----------------------------------------------------+ | ???????????????????????????????????????????????? | | ???????????????????????????????????????????????? | | ???????????????????????????????????????????????? | | ???????????????????????????????????????????????? | | ???????????????????????????????????????????????? | | ???????????????????????????????????????????????? | | ???????????????????????????????????????????????? | | ???????????????????????????????????????????????? | | ???????????????????????????????????????????????? | | ???????????????????????????????????????????????? | | ???????????????????????????????????????????????? | | ???????????????????????????????????????????????? | | ???????????????????????????????????????????????? | | ???????????????????????????????????????????????? | | ???????????????????????????????????????????????? | | ???????????????????????????????????????????????? | | ???????????????????????????????????????????????? | | ???????????????????????????????????????????????? | | ???????????????????????????????????????????????? | | ??????????????????????????# "??????????????????? | | ??????????????????????????""???????????????????? | | ????????????????????????##""???????????????????? | | ????????????????????????#""????????????????????? | | ???????????????????????##R"????????????????????? | | ???????????????????????#"%#######??????????????? | | ???????????????????????#"@##"" ##?????????????? | | ???????????????????????#""!& #?????????????? | | ???????????????????????##"[& #?????????????? | | ????????????????????????##!# ###?????????????? | | ?????????????????????????# # ##??????????????? | | ????????????????????????## # #??????????????? | | ????????????????????????# c #??????????????? | | ????????????????????????## ##??????????????? | | ????????????????????????## ## #??????????????? | | ????????????????????????# ## ##??????????????? | | ????????????????????????# #??????????????? | | ????????????????????????# ## ##??????????????? | | ????????????????????????## ## ##??????????????? | | ?????????????????????????# ^ ##?????????????? | | ?????????????????????????# ^ #?????????????? | | ???????????????????????#### #?????????????? | | ????????####??????????## ## ^ #?????????????? | | ???????## ##??###????# " #?# ##?????????????? | | ???????# ### "#???### # # #? #??????????????? | | ??????## "" #??##" "#####??#??????????????? | | ??????# #" #??#" ""#?????????????????????? | | ??????### """###"#??## ###?????????????????????? | | ????????## ### "#?## #??????????????????????? | | ?????????# ### "### " ##?????????????????????? | | ?????????# # < """##????????????????????? | +----------------------------------------------------+ Best States ------------- Heat Dissipation 25 Energy Generation 10 Energy Capacity 250 Matter Stores 300 Matter Capacity 300 Sight Range 16 Terrain Scan Density 10 Propulsion Shielding 33 Evasion (%) 55 Recoil Reduction 2 Item Schematics ----------------- None Robot Schematics ------------------ None Fabricated ------------ Nothing Repaired ---------- Grenade Launcher | 55% | -10/Materials Lgt. Treads | 53% | -10/Materials Studied --------- None Alien Tech Used ----------------- None Achievements -------------- Do Not Disturb Mistaken Identity Overwhelming Challenges ------------ None Game ------ Seed CoordinationWaveForcegen Manual? 0 Play Time 00:39:49 Cumulative 332.1 hours Start 2026.08.08 @ 21:27:57 End 2026.08.10 @ 21:18:35 Sessions 3 Manual Loads 0 Difficulty Rogue Special Mode None Game No. 142 Rogue 142 Adventurer 0 Explorer 0 Win Type - Total 14 Types 10/0/1/1/0/1/1/0/0/0 Lore% 52 Gallery% 67 Achievement% 46 Wizard Run 0 Options --------- Layout 1 ASCII 1 Keyboard 0 Movement Arrows Keybinds 0 Fullscreen 2 Font 24/Smallcaps Map View 50x35 Zoom Use 0% Tactical HUD 1 Map Filters NONE Filters NONE Steam 1 RUN: 888f3cec-42ac-4fe3-bbad-e51cb057dc3c